fUSD/lending_fUSD_20240615
["ID","MTS","AMOUNT","RATE_DAILY","PERIOD"]
[329525147,1718417477137,-500.0,0.00022191,3]
[329525148,1718417477148,-500.0,0.00022191,3]
[329525149,1718417477161,-500.0,0.00022191,3]
[329525150,1718417477182,-500.0,0.00022191,3]
[329525151,1718417477193,-513.11566286,0.00022191,3]
[329525152,1718417477206,-500.0,0.00022191,3]
[329525153,1718417477224,-500.0,0.00022191,3]
[329525154,1718417477239,-500.0,0.00022191,3]
[329525155,1718417477252,-500.0,0.00022191,3]
[329525156,1718417477274,-500.0,0.00022191,3]
[329525157,1718417477292,-607.69,0.00022191,3]
[329525158,1718417477304,-382.3455255,0.00022191,3]
[329525159,1718417477327,-500.0,0.00022191,3]
[329525160,1718417477346,-500.0,0.00022191,3]
[329525161,1718417477358,-500.0,0.00022191,3]
[329525162,1718417477385,-518.51478662,0.00022191,3]
[329525163,1718417477401,-500.0,0.00022191,3]
[329525164,1718417477435,-500.0,0.00022191,3]
[329525165,1718417477456,-500.0,0.00022191,3]
[329525166,1718417477482,-533.7420231,0.00022191,3]
[329525167,1718417477497,-526.0839776,0.00022191,3]
[329525168,1718417477510,-500.0,0.00022191,3]
[329525169,1718417477523,-522.07181235,0.00022191,3]
[329525170,1718417477541,-500.0,0.00022191,3]
[329525171,1718417477562,-785.34,0.00022191,3]
[329525172,1718417477574,-500.0,0.00022191,3]
[329525173,1718417477600,-5000.0,0.00022191,3]
[329525174,1718417477625,-500.0,0.00022191,3]
[329525175,1718417477649,-500.0,0.00022191,3]
[329525176,1718417477669,-500.0,0.00022191,3]
[329525177,1718417477681,-151.0,0.00022191,7]
[329525178,1718417477695,-500.0,0.00022191,3]
[329525179,1718417477714,-151.0,0.00022191,7]
[329525180,1718417477725,-151.0,0.00022191,7]
[329525181,1718417477737,-162.10756,0.00022191,7]
[329525182,1718417477766,-523.74150507,0.00022191,3]
[329525183,1718417477779,-500.0,0.00022191,3]
[329525184,1718417477799,-500.0,0.00022191,3]
[329525185,1718417477836,-500.0,0.00022191,3]
[329525186,1718417477854,-397.23998103,0.00022191,3]
[329525187,1718417477869,-500.0,0.00022191,3]
[329525188,1718417477884,-500.0,0.00022191,3]
[329525189,1718417477899,-500.0,0.00022191,3]
[329525190,1718417477924,-500.0,0.00022191,3]
[329525191,1718417477951,-500.0,0.00022191,3]
[329525192,1718417477972,-500.0,0.00022191,3]
[329525193,1718417477992,-500.0,0.00022191,3]
[329525194,1718417478032,-500.0,0.00022191,3]
[329525195,1718417478044,-461.30046255,0.00022191,3]
[329525196,1718417478056,-500.0,0.00022191,3]
[329525197,1718417478067,-500.0,0.00022191,3]
[329525198,1718417478083,-500.0,0.00022191,3]
[329525199,1718417478102,-500.0,0.00022191,3]
[329525200,1718417478129,-500.0,0.00022191,3]
[329525201,1718417478150,-511.19910717,0.00022191,3]
[329525202,1718417478163,-500.0,0.00022191,3]
[329525203,1718417478175,-500.0,0.00022191,3]
[329525204,1718417478194,-500.0,0.00022191,3]
[329525205,1718417478213,-511.38796714,0.00022191,3]
[329525206,1718417478226,-500.0,0.00022191,3]
[329525207,1718417478238,-500.0,0.00022191,3]
[329525208,1718417478257,-500.0,0.00022191,3]
[329525209,1718417478282,-500.0,0.00022191,3]
[329525210,1718417478303,-500.0,0.00022191,3]
[329525211,1718417478326,-510.78599216,0.00022191,3]
[329525212,1718417478344,-500.0,0.00022191,3]
[329525213,1718417478361,-500.0,0.00022191,3]
[329525214,1718417478381,-500.0,0.00022191,3]
[329525215,1718417478403,-500.0,0.00022191,3]
[329525216,1718417478421,-500.0,0.00022191,3]
[329525217,1718417478443,-500.0,0.00022191,3]
[329525218,1718417478477,-500.0,0.00022191,2]
[329525219,1718417478507,-500.0,0.00022191,3]
[329525220,1718417478520,-500.0,0.00022191,3]
[329525221,1718417478532,-606.64176092,0.00022191,3]
[329525222,1718417478554,-500.0,0.00022191,3]
[329525223,1718417478569,-507.65,0.00022191,3]
[329525224,1718417478580,-500.0,0.00022191,3]
[329525225,1718417478591,-500.0,0.00022191,3]
[329525226,1718417478606,-500.0,0.00022191,3]
[329525227,1718417478623,-500.0,0.00022191,3]
[329525228,1718417478635,-500.0,0.00022191,3]
[329525229,1718417478687,-500.0,0.00022191,3]
[329525230,1718417478705,-500.0,0.00022191,3]
[329525231,1718417478728,-500.0,0.00022191,3]
[329525232,1718417478741,-500.0,0.00022191,3]
[329525233,1718417478767,-523.21159877,0.00022191,3]
[329525234,1718417478780,-500.0,0.00022191,3]
[329525235,1718417478799,-500.0,0.00022191,3]
[329525236,1718417478823,-555.48139507,0.00022191,3]
[329525237,1718417478837,-519.8148799,0.00022191,3]
[329525238,1718417478879,-500.0,0.00022191,3]
[329525239,1718417478903,-500.0,0.00022191,3]
[329525240,1718417478925,-611.60953227,0.00022191,3]
[329525241,1718417478939,-545.87734592,0.00022191,3]
[329525242,1718417478970,-151.0,0.00022191,7]
[329525243,1718417478991,-154.26595,0.00022191,7]
[329525244,1718417479020,-500.0,0.00022191,3]
[329525245,1718417479056,-500.0,0.00022191,3]
[329525246,1718417479069,-500.0,0.00022191,3]
[329525247,1718417479091,-500.0,0.00022191,3]
[329525248,1718417479104,-500.0,0.00022191,3]
[329525249,1718417479141,-500.0,0.00022191,3]
[329525250,1718417479153,-481.16897904,0.00022191,3]
[329525251,1718417479200,-500.0,0.00022191,3]
[329525252,1718417479212,-500.0,0.00022191,3]
[329525253,1718417479255,-500.0,0.00022191,3]
[329525254,1718417479270,-500.0,0.00022191,3]
[329525255,1718417479282,-500.0,0.00022191,3]
[329525256,1718417479302,-501.90877225,0.00022191,3]
[329525257,1718417479317,-500.0,0.00022191,3]
[329525258,1718417479367,-500.0,0.00022191,3]
[329525259,1718417479384,-500.0,0.00022191,3]
[329525260,1718417479408,-500.0,0.00022191,3]
[329525261,1718417479422,-500.0,0.00022191,3]
[329525262,1718417479453,-527.73878296,0.00022191,3]
[329525263,1718417479474,-538.4228186,0.00022191,3]
[329525264,1718417479485,-500.0,0.00022191,3]
[329525265,1718417479501,-509.08931541,0.00022191,3]
[329525266,1718417479523,-500.0,0.00022191,3]
[329525267,1718417479549,-500.0,0.00022191,3]
[329525268,1718417479561,-500.0,0.00022191,3]
[329525269,1718417479572,-515.84,0.00022191,3]
[329525270,1718417479586,-516.68071571,0.00022191,3]
[329525271,1718417479598,-500.0,0.00022191,3]
[329525272,1718417479610,-500.0,0.00022191,3]
[329525273,1718417479622,-527.01447526,0.00022191,3]
[329525274,1718417479635,-500.0,0.00022191,3]
[329525275,1718417479659,-500.0,0.00022191,3]
[329525276,1718417479676,-391.49511398,0.00022191,3]
[329525277,1718417479691,-500.0,0.00022191,3]
[329525278,1718417479706,-500.0,0.00022191,3]
[329525279,1718417479737,-500.0,0.00022191,3]
[329525280,1718417479764,-500.0,0.00022191,3]
[329525281,1718417479777,-500.0,0.00022191,3]
[329525282,1718417479793,-500.0,0.00022191,3]
[329525283,1718417479806,-500.0,0.00022191,3]
[329525284,1718417479819,-500.0,0.00022191,3]
[329525285,1718417479833,-500.0,0.00022191,3]
[329525286,1718417479854,-508.06722343,0.00022191,3]
[329525287,1718417479871,-500.0,0.00022191,3]
[329525288,1718417479891,-500.0,0.00022191,3]
[329525289,1718417479903,-549.10311725,0.00022191,3]
[329525290,1718417480050,-538.82370871,0.00022191,3]
[329525291,1718417480068,-500.0,0.00022191,3]
[329525292,1718417480081,-500.0,0.00022191,3]
[329525293,1718417480108,-500.0,0.00022191,3]
[329525294,1718417480130,-500.0,0.00022191,3]
[329525295,1718417480141,-524.07508345,0.00022191,3]
[329525296,1718417480169,-537.2750434,0.00022191,3]
[329525297,1718417480184,-500.0,0.00022191,3]
[329525298,1718417480195,-500.0,0.00022191,3]
[329525299,1718417480208,-500.0,0.00022191,3]
[329525300,1718417480228,-501.07,0.00022191,3]
[329525301,1718417480248,-573.93428163,0.00022191,3]
[329525302,1718417480262,-500.0,0.00022191,3]
[329525303,1718417480283,-500.0,0.00022191,3]
[329525304,1718417480294,-500.0,0.00022191,3]
[329525305,1718417480320,-570.09419611,0.00022191,3]
[329525306,1718417480334,-500.0,0.00022191,3]
[329525307,1718417480363,-500.0,0.00022191,3]
[329525308,1718417480379,-500.0,0.00022191,3]
[329525309,1718417480420,-500.0,0.00022191,3]
[329525310,1718417480438,-500.0,0.00022191,3]
[329525311,1718417480469,-500.0,0.00022191,3]
[329525312,1718417480501,-500.0,0.00022191,3]
[329525313,1718417480511,-529.19318715,0.00022191,3]
[329525314,1718417480522,-500.0,0.00022191,3]
[329525315,1718417480548,-500.0,0.00022191,3]
[329525316,1718417480575,-500.0,0.00022191,3]
[329525317,1718417480591,-500.0,0.00022191,3]
[329525318,1718417480605,-500.0,0.00022191,3]
[329525319,1718417480629,-500.0,0.00022191,3]
[329525320,1718417480640,-516.00470823,0.00022191,3]
[329525321,1718417480653,-150.0,0.00022191,3]
[329525322,1718417480669,-500.0,0.00022191,3]
[329525323,1718417480705,-516.17458728,0.00022191,3]
[329525324,1718417480720,-500.0,0.00022191,3]
[329525325,1718417480752,-500.0,0.00022191,3]
[329525326,1718417480784,-500.0,0.00022191,3]
[329525327,1718417480804,-500.0,0.00022191,3]
[329525328,1718417480816,-500.0,0.00022191,3]
[329525329,1718417480841,-500.0,0.00022191,3]
[329525330,1718417480857,-505.11404767,0.00022191,3]
[329525331,1718417480872,-500.0,0.00022191,3]
[329525332,1718417480886,-500.0,0.00022191,3]
[329525333,1718417480902,-500.0,0.00022191,3]
[329525334,1718417480914,-597.09360782,0.00022191,3]
[329525335,1718417480949,-500.0,0.00022191,3]
[329525336,1718417480962,-500.0,0.00022191,3]
[329525337,1718417480975,-555.48716914,0.00022191,3]
[329525338,1718417480989,-500.0,0.00022191,3]
[329525339,1718417481033,-500.0,0.00022191,3]
[329525340,1718417481060,-500.0,0.00022191,3]
[329525341,1718417481071,-500.0,0.00022191,3]
[329525342,1718417481083,-1000.0,0.00022191,3]
[329525343,1718417481094,-500.0,0.00022191,3]
[329525344,1718417481107,-500.0,0.00022191,3]
[329525345,1718417481121,-500.0,0.00022191,3]
[329525346,1718417481132,-500.0,0.00022191,3]
[329525347,1718417481142,-672.79,0.00022191,3]
[329525348,1718417481153,-500.0,0.00022191,3]
[329525349,1718417481164,-500.0,0.00022191,3]
[329525350,1718417481181,-500.0,0.00022191,3]
[329525351,1718417481192,-500.0,0.00022191,3]
[329525352,1718417481209,-500.0,0.00022191,3]
[329525353,1718417481223,-590.85340892,0.00022191,3]
[329525354,1718417481234,-500.0,0.00022191,3]
[329525355,1718417481244,-500.0,0.00022191,3]
[329525356,1718417481262,-500.0,0.00022191,3]
[329525357,1718417481277,-500.0,0.00022191,3]
[329525358,1718417481288,-602.31633787,0.00022191,3]
[329525359,1718417481301,-500.0,0.00022191,3]
[329525360,1718417481336,-200.0,0.00022191,3]
[329525361,1718417481347,-500.0,0.00022191,3]
[329525362,1718417481359,-870.98,0.00022191,3]
[329525363,1718417481382,-668.73,0.00022191,3]
[329525364,1718417481396,-500.0,0.00022191,3]
[329525365,1718417481417,-500.0,0.00022191,3]
[329525366,1718417481441,-504.77964507,0.00022191,3]
[329525367,1718417481453,-500.0,0.00022191,3]
[329525368,1718417481484,-275.93037045,0.00022191,3]
[329525369,1718417481509,-519.66502296,0.00022191,3]
[329525370,1718417481522,-500.0,0.00022191,3]
[329525371,1718417481536,-500.0,0.00022191,3]
[329525372,1718417481552,-151.0,0.00022191,7]
[329525373,1718417481562,-500.0,0.00022191,3]
[329525374,1718417481578,-151.0,0.00022191,7]
[329525375,1718417481591,-151.0,0.00022191,7]
[329525376,1718417481602,-151.0,0.00022191,7]
[329525377,1718417481615,-503.85221503,0.00022191,3]
[329525378,1718417481656,-500.0,0.00022191,3]
[329525379,1718417481667,-500.0,0.00022191,3]
[329525380,1718417481679,-151.0,0.00022191,7]
[329525381,1718417481712,-170.885752,0.00022191,7]
[329525382,1718417481733,-500.0,0.00022191,3]
[329525383,1718417481751,-500.0,0.00022191,3]
[329525384,1718417481762,-500.0,0.00022191,3]
[329525385,1718417481781,-1385.03,0.00022191,3]
[329525386,1718417481804,-500.0,0.00022191,3]
[329525387,1718417481816,-500.0,0.00022191,3]
[329525388,1718417481828,-500.0,0.00022191,3]
[329525389,1718417481839,-500.0,0.00022191,3]
[329525390,1718417481850,-500.0,0.00022191,3]
[329525391,1718417481861,-500.0,0.00022191,3]
[329525392,1718417481882,-500.0,0.00022191,3]
[329525393,1718417481894,-545.94,0.00022191,3]
[329525394,1718417481905,-500.0,0.00022191,3]
[329525395,1718417481916,-500.0,0.00022191,3]
[329525396,1718417481928,-728.36,0.00022191,3]
[329525397,1718417481942,-888.58,0.00022191,3]
[329525398,1718417481952,-500.0,0.00022191,3]
[329525399,1718417481971,-500.0,0.00022191,3]
[329525400,1718417481982,-500.0,0.00022191,3]
[329525401,1718417481994,-500.0,0.00022191,3]
[329525402,1718417482012,-500.0,0.00022191,3]
[329525403,1718417482031,-500.0,0.00022191,3]
[329525404,1718417482042,-682.82,0.00022191,3]
[329525405,1718417482060,-500.0,0.00022191,3]
[329525406,1718417482071,-500.0,0.00022191,3]
[329525407,1718417482086,-500.0,0.00022191,3]
[329525408,1718417482097,-513.33643675,0.00022191,3]
[329525409,1718417482123,-500.0,0.00022191,3]
[329525410,1718417482134,-500.0,0.00022191,3]
[329525411,1718417482149,-500.0,0.00022191,3]
[329525412,1718417482167,-500.0,0.00022191,3]
[329525413,1718417482178,-500.0,0.00022191,3]
[329525414,1718417482201,-500.0,0.00022191,3]
[329525415,1718417482212,-500.0,0.00022191,3]
[329525416,1718417482230,-500.0,0.00022191,3]
[329525417,1718417482250,-500.0,0.00022191,3]
[329525418,1718417482261,-500.0,0.00022191,3]
[329525419,1718417482273,-500.0,0.00022191,3]
[329525420,1718417482284,-500.0,0.00022191,3]
[329525421,1718417482297,-532.27,0.00022191,3]
[329525422,1718417482308,-500.0,0.00022191,3]
[329525423,1718417482319,-4841.14,0.00022191,3]
[329525424,1718417482331,-500.0,0.00022191,3]
[329525425,1718417482342,-606.39,0.00022191,3]
[329525426,1718417482353,-500.0,0.00022191,3]
[329525427,1718417482364,-500.0,0.00022191,3]
[329525428,1718417482380,-856.26,0.00022191,3]
[329525429,1718417482397,-500.0,0.00022191,3]
[329525430,1718417482442,-500.0,0.00022191,3]
[329525431,1718417482453,-169.795748,0.00022191,7]
[329525432,1718417482464,-500.0,0.00022191,3]
[329525433,1718417482475,-500.0,0.00022191,3]
[329525434,1718417482487,-169.795748,0.00022191,7]
[329525435,1718417482501,-169.795748,0.00022191,7]
[329525436,1718417482514,-500.0,0.00022191,3]
[329525437,1718417482537,-169.795748,0.00022191,7]
[329525438,1718417482553,-169.795748,0.00022191,7]
[329525439,1718417482563,-169.795744,0.00022191,7]
[329525440,1718417482576,-500.0,0.00022191,3]
[329525441,1718417482616,-500.0,0.00022191,3]
[329525442,1718417482637,-500.0,0.00022191,3]
[329525443,1718417482649,-477.327724,0.00022191,7]
[329525444,1718417482662,-477.327724,0.00022191,7]
[329525445,1718417482674,-477.327715,0.00022191,7]
[329525446,1718417482685,-151.0,0.00022191,7]
[329525447,1718417482709,-151.0,0.00022191,7]
[329525448,1718417482739,-151.0,0.00022191,7]
[329525449,1718417482786,-500.0,0.00022191,3]
[329525450,1718417482805,-500.0,0.00022191,3]
[329525451,1718417482818,-500.0,0.00022191,3]
[329525452,1718417482838,-506.1,0.00022191,3]
[329525453,1718417482852,-500.0,0.00022191,3]
[329525454,1718417482869,-500.0,0.00022191,3]
[329525455,1718417482880,-724.3,0.00022191,3]
[329525456,1718417482892,-223.222177,0.00022191,7]
[329525457,1718417482909,-500.0,0.00022191,3]
[329525458,1718417482925,-531.35,0.00022191,3]
[329525459,1718417482960,-813.58,0.00022191,3]
[329525460,1718417482971,-500.0,0.00022191,3]
[329525461,1718417482983,-500.0,0.00022191,3]
[329525462,1718417482996,-180.95392108,0.00022191,3]
[329525463,1718417483008,-500.0,0.00022191,3]
[329525464,1718417483021,-500.0,0.00022191,3]
[329525465,1718417483034,-500.0,0.00022191,3]
[329525466,1718417483078,-500.0,0.00022191,3]
[329525467,1718417483093,-552.20603938,0.00022191,3]
[329525468,1718417483108,-151.0,0.00022191,7]
[329525469,1718417483127,-151.0,0.00022191,7]
[329525470,1718417483139,-151.0,0.00022191,7]
[329525471,1718417483161,-519.65,0.00022191,3]
[329525472,1718417483183,-778.57,0.00022191,3]
[329525473,1718417483208,-515.24,0.00022191,3]
[329525474,1718417483228,-500.0,0.00022191,3]
[329525475,1718417483246,-500.0,0.00022191,3]
[329525476,1718417483276,-1047.51,0.00022191,3]
[329525477,1718417483291,-500.0,0.00022191,3]
[329525478,1718417483309,-903.22,0.00022191,3]
[329525479,1718417483347,-500.0,0.00022191,3]
[329525480,1718417483368,-746.57,0.00022191,3]
[329525481,1718417483380,-500.0,0.00022191,3]
[329525482,1718417483392,-639.11,0.00022191,3]
[329525483,1718417483405,-500.0,0.00022191,3]
[329525484,1718417483433,-500.0,0.00022191,3]
[329525485,1718417483464,-466.16736346,0.00022191,3]
[329525486,1718417483482,-777.96,0.00022191,3]
[329525487,1718417483497,-500.0,0.00022191,3]
[329525488,1718417483516,-803.6,0.00022191,3]
[329525489,1718417483529,-500.0,0.00022191,3]
[329525490,1718417483549,-500.0,0.00022191,3]
[329525491,1718417483562,-2432.85,0.00022191,3]
[329525492,1718417483576,-500.0,0.00022191,3]
[329525493,1718417483594,-511.205269,0.00022191,3]
[329525494,1718417483617,-500.0,0.00022191,3]
[329525495,1718417483630,-500.0,0.00022191,3]
[329525496,1718417483643,-3528.32,0.00022191,3]
[329525497,1718417483660,-559.3,0.00022191,3]
[329525498,1718417483683,-518.99,0.00022191,3]
[329525499,1718417483704,-500.0,0.00022191,3]
[329525500,1718417483730,-626.24,0.00022191,3]
[329525501,1718417483749,-500.0,0.00022191,3]
[329525502,1718417483763,-500.0,0.00022191,3]
[329525503,1718417483774,-2169.8,0.00022191,3]
[329525504,1718417483787,-500.0,0.00022191,3]
[329525505,1718417483799,-187.33361,0.00022191,7]
[329525506,1718417483811,-187.33361,0.00022191,7]
[329525507,1718417483823,-500.0,0.00022191,3]
[329525508,1718417483848,-187.33361,0.00022191,7]
[329525509,1718417483861,-1397.37,0.00022191,3]
[329525510,1718417483874,-187.33361,0.00022191,7]
[329525511,1718417483889,-187.33361,0.00022191,7]
[329525512,1718417483917,-187.333617,0.00022191,7]
[329525513,1718417483939,-500.0,0.00022191,3]
[329525514,1718417483956,-500.0,0.00022191,3]
[329525515,1718417483991,-500.0,0.00022191,3]
[329525516,1718417484004,-1812.96,0.00022191,3]
[329525517,1718417484015,-593.04077079,0.00022191,3]
[329525518,1718417484036,-544.33155065,0.00022191,3]
[329525519,1718417484047,-1116.08,0.00022191,3]
[329525520,1718417484062,-2203.0,0.00022191,3]
[329525521,1718417484080,-500.0,0.00022191,3]
[329525522,1718417484119,-500.0,0.00022191,3]
[329525523,1718417484144,-2898.04,0.00022191,3]
[329525524,1718417484163,-528.73940585,0.00022191,3]
[329525525,1718417484199,-500.0,0.00022191,3]
[329525526,1718417484212,-3160.594099,0.00022191,7]
[329525527,1718417484240,-3160.594099,0.00022191,7]
[329525528,1718417484380,-3160.594099,0.00022191,7]
[329525529,1718417484409,-1318.8,0.00022191,3]
[329525530,1718417484421,-615.84227397,0.00022191,3]
[329525531,1718417484433,-3160.594099,0.00022191,7]
[329525532,1718417484444,-3160.594099,0.00022191,7]
[329525533,1718417484457,-500.0,0.00022191,3]
[329525534,1718417484470,-3160.594098,0.00022191,7]
[329525535,1718417484481,-500.0,0.00022191,3]
[329525536,1718417484492,-459.71369168,0.00022191,3]
[329525537,1718417484503,-500.0,0.00022191,3]
[329525538,1718417484514,-500.0,0.00022191,3]
[329525539,1718417484528,-1088.26,0.00022191,3]
[329525540,1718417484539,-500.0,0.00022191,3]
[329525541,1718417484550,-1288.4,0.00022191,3]
[329525542,1718417484562,-522.75048344,0.00022191,3]
[329525543,1718417484573,-7905.56,0.00022191,3]
[329525544,1718417484584,-500.0,0.00022191,3]
[329525545,1718417484597,-500.0,0.00022191,3]
[329525546,1718417484610,-974.3,0.00022191,3]
[329525547,1718417484636,-500.0,0.00022191,3]
[329525548,1718417484660,-500.0,0.00022191,3]
[329525549,1718417484680,-500.0,0.00022191,3]
[329525550,1718417484693,-771.35,0.00022191,3]
[329525551,1718417484709,-513.32425684,0.00022191,3]
[329525552,1718417484735,-2138.1,0.00022191,3]
[329525553,1718417484746,-691.68,0.00022191,3]
[329525554,1718417484773,-3270.81,0.00022191,3]
[329525555,1718417484786,-500.0,0.00022191,3]
[329525556,1718417484797,-505.102408,0.00022191,3]
[329525557,1718417484808,-500.0,0.00022191,3]
[329525558,1718417484821,-500.0,0.00022191,3]
[329525559,1718417484832,-500.0,0.00022191,3]
[329525560,1718417484856,-713.64,0.00022191,3]
[329525561,1718417484867,-500.0,0.00022191,3]
[329525562,1718417484877,-599.22,0.00022191,3]
[329525563,1718417484888,-500.0,0.00022191,3]
[329525564,1718417484898,-500.0,0.00022191,3]
[329525565,1718417484910,-500.0,0.00022191,3]
[329525566,1718417484921,-500.0,0.00022191,3]
[329525567,1718417484933,-523.84,0.00022191,3]
[329525568,1718417484944,-500.0,0.00022191,3]
[329525569,1718417484971,-545.23432612,0.00022191,3]
[329525570,1718417484984,-1195.79,0.00022191,3]
[329525571,1718417484997,-500.0,0.00022191,3]
[329525572,1718417485009,-500.0,0.00022191,3]
[329525573,1718417485023,-500.0,0.00022191,3]
[329525574,1718417485041,-387.52326425,0.00022191,3]
[329525575,1718417485052,-500.0,0.00022191,3]
[329525576,1718417485065,-500.0,0.00022191,3]
[329525577,1718417485077,-500.0,0.00022191,3]
[329525578,1718417485090,-500.0,0.00022191,3]
[329525579,1718417485101,-1341.44,0.00022191,3]
[329525580,1718417485112,-500.0,0.00022191,3]
[329525581,1718417485125,-1129.63,0.00022191,3]
[329525582,1718417485136,-500.0,0.00022191,3]
[329525583,1718417485149,-151.0,0.00022191,7]
[329525584,1718417485161,-151.0,0.00022191,7]
[329525585,1718417485182,-151.0,0.00022191,7]
[329525586,1718417485205,-545.32240048,0.00022191,3]
[329525587,1718417485216,-500.0,0.00022191,3]
[329525588,1718417485228,-500.0,0.00022191,3]
[329525589,1718417485256,-211.234991,0.00022191,7]
[329525590,1718417485267,-534.73468806,0.00022191,3]
[329525591,1718417485278,-500.0,0.00022191,3]
[329525592,1718417485289,-513.15386032,0.00022191,3]
[329525593,1718417485308,-500.0,0.00022191,3]
[329525594,1718417485320,-500.0,0.00022191,3]
[329525595,1718417485332,-500.0,0.00022191,3]
[329525596,1718417485345,-1346.88,0.00022191,3]
[329525597,1718417485356,-463.59474957,0.00022191,3]
[329525598,1718417485377,-3501.23,0.00022191,3]
[329525599,1718417485388,-516.84,0.00022191,3]
[329525600,1718417485409,-500.0,0.00022191,3]
[329525601,1718417485429,-500.0,0.00022191,3]
[329525602,1718417485443,-1291.54,0.00022191,3]
[329525603,1718417485460,-809.78,0.00022191,3]
[329525604,1718417485472,-500.0,0.00022191,3]
[329525605,1718417485495,-500.0,0.00022191,3]
[329525606,1718417485507,-923.8,0.00022191,3]
[329525607,1718417485522,-500.0,0.00022191,3]
[329525608,1718417485535,-182.069528,0.00022191,7]
[329525609,1718417485553,-1654.95,0.00022191,3]
[329525610,1718417485564,-182.069528,0.00022191,7]
[329525611,1718417485585,-182.069528,0.00022191,7]
[329525612,1718417485596,-854.0,0.00022191,3]
[329525613,1718417485617,-500.0,0.00022191,3]
[329525614,1718417485632,-182.069528,0.00022191,7]
[329525615,1718417485650,-182.069528,0.00022191,7]
[329525616,1718417485663,-182.069518,0.00022191,7]
[329525617,1718417485688,-500.0,0.00022191,3]
[329525618,1718417485715,-500.0,0.00022191,3]
[329525619,1718417485730,-4144.87,0.00022191,3]
[329525620,1718417485761,-500.0,0.00022191,3]
[329525621,1718417485774,-500.0,0.00022191,3]
[329525622,1718417485785,-500.0,0.00022191,3]
[329525623,1718417485797,-2305.21,0.00022191,3]
[329525624,1718417485813,-500.0,0.00022191,3]
[329525625,1718417485832,-500.0,0.00022191,3]
[329525626,1718417485844,-500.0,0.00022191,3]
[329525627,1718417485857,-500.0,0.00022191,3]
[329525628,1718417485876,-500.0,0.00022191,3]
[329525629,1718417485902,-500.0,0.00022191,3]
[329525630,1718417485915,-500.0,0.00022191,3]
[329525631,1718417485926,-500.0,0.00022191,3]
[329525632,1718417485938,-500.0,0.00022191,3]
[329525633,1718417485953,-500.0,0.00022191,3]
[329525634,1718417485966,-1983.64,0.00022191,3]
[329525635,1718417485980,-500.0,0.00022191,3]
[329525636,1718417486014,-500.0,0.00022191,3]
[329525637,1718417486042,-500.0,0.00022191,3]
[329525638,1718417486060,-500.0,0.00022191,3]
[329525639,1718417486071,-500.0,0.00022191,3]
[329525640,1718417486089,-500.0,0.00022191,3]
[329525641,1718417486101,-768.32,0.00022191,3]
[329525642,1718417486113,-500.0,0.00022191,3]
[329525643,1718417486130,-5336.34,0.00022191,3]
[329525644,1718417486142,-500.0,0.00022191,3]
[329525645,1718417486169,-822.64,0.00022191,3]
[329525646,1718417486196,-151.0,0.00022191,7]